bitfinex/quotes_SOLUSD_20260223
["timestamp","ask_amount","ask_price","bid_price","bid_amount"]
[1771887245760,1.37475544,78.797,78.77,0.2]
[1771887246270,1.37475544,78.789,78.77,0.2]
[1771887247260,1.37475544,78.787,78.77,0.2]
[1771887248561,1.37475544,78.785,78.77,0.2]
[1771887251266,1.37475544,78.783,78.77,0.2]
[1771887251584,1.37475544,78.783,78.76,1.54077537]
[1771887252685,1.37475544,78.783,78.761,12.69663919]
[1771887252982,1.18740784,78.779,78.753,12.69784151]
[1771887254677,1.19086856,78.777,78.751,1.34077537]
[1771887255971,1.19086856,78.777,78.752,1.34077537]
[1771887256977,12.69422159,78.776,78.75,0.2]
[1771887257182,1.19425023,78.775,78.751,1.34077537]
[1771887257966,1.19425023,78.775,78.73,5.4474946]
[1771887258261,1.19425023,78.775,78.628,76.27]
[1771887258262,0.66465104,78.684,78.682,35.52235388]
[1771887258460,0.66465104,78.672,78.61,5.4474946]
[1771887258672,17.23618352,78.683,78.61,5.4474946]
[1771887258882,5.4474946,78.67,78.61,5.4474946]
[1771887259077,3.69383402,78.687,78.349,49.45324738]
[1771887259078,5.4474946,78.65,78.595,57.2]
[1771887259266,5.4474946,78.65,78.598,3.69383402]
[1771887259780,44.49586187,78.659,78.584,57.2]
[1771887259781,5.4474946,78.63,78.584,57.2]
[1771887259982,5.4474946,78.62,78.572,1.35124484]
[1771887260176,5.4474946,78.62,78.52,5.4474946]
[1771887260177,5.4474946,78.6,78.55,1.35124484]
[1771887260375,5.4474946,78.6,78.388,21.12882533]
[1771887260376,1.09050889,78.607,78.552,1.35124484]
[1771887260688,5.4474946,78.61,78.551,0.3124181]
[1771887260883,5.4474946,78.61,78.561,0.3124181]
[1771887261084,12.72118968,78.609,78.569,0.3124181]
[1771887261280,12.72046793,78.614,78.569,0.3124181]
[1771887261462,18.16697811,78.62,78.569,0.3124181]
[1771887262284,18.16697811,78.62,78.572,0.31322466]
[1771887262683,18.16697811,78.62,78.575,0.14216157]
[1771887262984,18.16697811,78.62,78.591,0.31402195]
[1771887263183,49.96550265,78.62,78.591,0.31402195]
[1771887263363,5.4474946,78.61,78.591,0.31402195]
[1771887264783,5.4474946,78.6,78.588,0.27980564]
[1771887264982,5.4474946,78.61,78.588,0.27980564]
[1771887265373,12.72118968,78.609,78.588,0.27980564]
[1771887266880,1.39684353,78.597,78.544,0.25523569]
[1771887267082,5.4474946,78.56,78.544,0.25523569]
[1771887267389,12.72928626,78.559,78.522,57.26]
[1771887267772,12.72928626,78.559,78.523,5.36086188]
[1771887269473,12.72961034,78.557,78.522,57.26]
[1771887269887,1.39684353,78.556,78.522,57.26]
[1771887270190,12.72961034,78.557,78.48,5.4474946]
[1771887270191,1.39684353,78.549,78.48,5.4474946]
[1771887270371,1.39684353,78.539,78.48,5.4474946]
[1771887270573,1.39684353,78.539,78.49,57.38]
[1771887270885,1.39684353,78.539,78.491,5.36086188]
[1771887271192,1.39684353,78.547,78.491,5.36086188]
[1771887271393,1.39684353,78.547,78.492,0.28432314]
[1771887271688,5.4474946,78.54,78.492,0.28432314]
[1771887272090,1.39684353,78.545,78.492,0.28432314]
[1771887272384,1.39684353,78.539,78.491,5.36086188]
[1771887272780,1.39684353,78.539,78.492,0.14216157]
[1771887272984,1.39684353,78.539,78.492,0.28432314]
[1771887273475,1.39684353,78.539,78.49,57.38]
[1771887273675,1.39684353,78.537,78.49,57.38]
[1771887274689,12.7326899,78.538,78.491,5.36086188]
[1771887274890,12.7326899,78.538,78.492,0.28432314]
[1771887275092,1.39684353,78.537,78.492,0.28432314]
[1771887275682,12.73301415,78.536,78.492,0.28432314]
[1771887277603,1.39684353,78.536,78.492,0.28432314]
[1771887278976,1.39684353,78.548,78.492,0.28432314]
[1771887279798,1.39684353,78.546,78.492,0.28432314]
[1771887280397,1.39684353,78.554,78.499,5.64518502]
[1771887280587,1.39684353,78.554,78.501,5.64518502]
[1771887281488,1.39684353,78.554,78.502,3.69383402]
[1771887281696,1.39684353,78.554,78.503,0.28432314]
[1771887282086,1.39684353,78.552,78.503,5.64518502]
[1771887283906,1.39684353,78.558,78.503,5.64518502]
[1771887287095,1.39684353,78.556,78.503,5.64518502]
[1771887287608,1.39684353,78.549,78.503,5.50302345]
[1771887287809,1.39684353,78.549,78.505,0.14216157]
[1771887288485,1.37391353,78.547,78.497,3.69383402]
[1771887288885,1.37391353,78.547,78.502,0.28432314]
[1771887289183,1.37391353,78.547,78.504,5.64518502]
[1771887290494,1.37391353,78.545,78.504,5.64518502]
[1771887292003,1.37391353,78.539,78.503,57.36]
[1771887292797,12.7326899,78.538,78.503,57.36]
[1771887292992,1.37391353,78.537,78.503,57.36]
[1771887294312,1.37391353,78.537,78.503,56.05741504]
[1771887295897,1.37391353,78.535,78.503,56.05741504]
[1771887297319,1.32391353,78.509,78.41,1.37534753]
[1771887297610,1.32391353,78.499,78.44,5.48681315]
[1771887297815,1.32391353,78.499,78.451,5.36086188]
[1771887298006,1.32391353,78.497,78.451,5.36086188]
[1771887298312,1.32391353,78.497,78.452,0.28432314]
[1771887298499,1.32391353,78.489,78.444,3.69383402]
[1771887298812,1.32391353,78.489,78.444,5.36086188]
[1771887299508,1.32391353,78.489,78.434,9.0546959]
[1771887299707,1.32391353,78.489,78.412,38.14]
[1771887299708,1.32391353,78.489,78.445,0.14216157]
[1771887300214,1.32391353,78.489,78.445,0.28432314]
[1771887300420,1.32391353,78.487,78.431,5.36086188]
[1771887300620,1.32391353,78.479,78.434,3.69383402]
[1771887301119,1.32391353,78.479,78.435,0.28432314]
[1771887301514,1.32391353,78.479,78.434,3.69383402]
[1771887302301,1.32391353,78.477,78.42,5.48681315]
[1771887302623,31.85606157,78.478,78.385,0.2430526]
[1771887302624,5.48681315,78.45,78.421,5.36086188]
[1771887302806,1.32391353,78.449,78.398,57.38]
[1771887303004,44.59848619,78.478,78.385,0.2430526]
[1771887303005,1.32391353,78.439,78.411,12.75331267]
[1771887303818,1.32391353,78.439,78.412,5.36086188]
[1771887304319,1.32391353,78.439,78.393,3.69383402]
[1771887304699,1.32391353,78.439,78.394,5.64518502]
[1771887305522,1.32391353,78.439,78.394,3.69383402]
[1771887305707,1.32391353,78.439,78.395,0.14216157]
[1771887307020,1.32391353,78.439,78.403,0.28432314]
[1771887307220,1.32391353,78.437,78.403,0.28432314]
[1771887309620,1.32391353,78.437,78.404,12.7544513]
[1771887310422,1.32391353,78.435,78.404,12.7544513]
[1771887315637,5.48681315,78.43,78.403,0.28432314]
[1771887315817,5.48681315,78.43,78.379,57.42]
[1771887315818,1.32391353,78.419,78.349,57.42]
[1771887316014,5.48681315,78.4,78.385,1e-08]
[1771887316349,5.48681315,78.4,78.33,0.1]
[1771887316350,1.32391353,78.399,78.331,12.76633772]
[1771887316650,1.32391353,78.369,78.33,0.1]
[1771887316943,1.32391353,78.375,78.33,0.1]
[1771887317438,1.32391353,78.37,78.33,0.1]
[1771887318112,13.62632418,78.37,78.33,0.1]
[1771887318334,1.32391353,78.369,78.33,0.1]
[1771887319144,1.32391353,78.369,78.331,5.64518502]
[1771887319520,1.32391353,78.369,78.331,0.28432314]
[1771887319735,1.32391353,78.369,78.33,0.1]
[1771887320941,1.32391353,78.369,78.331,5.64518502]
[1771887321119,1.32391353,78.368,78.331,0.28432314]
[1771887321319,1.32391353,78.368,78.331,0.14216157]
[1771887321736,12.30241065,78.38,78.331,0.14216157]
[1771887321920,12.30241065,78.4,78.365,0.9159267]
[1771887322120,12.30241065,78.41,78.365,0.9159267]
[1771887322369,12.30241065,78.41,78.366,5.64518502]
[1771887322661,12.30241065,78.42,78.377,6.55536209]
[1771887322857,12.30241065,78.42,78.38,0.28432314]
[1771887323153,12.30241065,78.42,78.383,0.14216157]
[1771887323323,12.30241065,78.42,78.384,0.14216157]
[1771887323838,1.05433989,78.418,78.384,12.89986722]
[1771887324032,1.05433989,78.418,78.384,13.8043607]
[1771887324745,1.05433989,78.418,78.385,0.89887517]
[1771887326147,1.05433989,78.416,78.385,0.89887517]
[1771887327054,1.05433989,78.416,78.386,12.75738014]
[1771887327232,1.05433989,78.416,78.386,13.64521154]
[1771887329043,6.6595948,78.446,78.35,12.30241065]
[1771887329044,6.6595948,78.446,78.405,1.01940079]
[1771887329428,12.74713508,78.449,78.405,1.01940079]
[1771887329825,12.74551039,78.459,78.413,0.28432314]
[1771887330062,12.74551039,78.459,78.411,0.28432314]
[1771887330063,12.74551039,78.459,78.414,1.01940079]
[1771887330764,12.30241065,78.47,78.425,1.01940079]
[1771887330943,1.05433989,78.468,78.427,1.01940079]
[1771887332942,1.05433989,78.466,78.435,1.01940079]
[1771887337030,1.05433989,78.466,78.436,12.74924779]
[1771887337236,1.05433989,78.466,78.437,1.01940079]
[1771887337651,12.74366908,78.471,78.437,1.01940079]
[1771887337847,1.05433989,78.47,78.437,1.01940079]
[1771887338352,50.93023701,78.539,78.455,5.64518502]
[1771887338554,50.93023701,78.539,78.446,0.14216157]
[1771887338555,12.73739316,78.509,78.474,1.01940079]
[1771887339946,44.58087607,78.509,78.474,1.01940079]
[1771887340145,12.26127425,78.5,78.474,1.01940079]
[1771887340351,1.05433989,78.499,78.474,1.01940079]
[1771887340733,12.73917806,78.498,78.474,1.01940079]
[1771887341459,13.79351795,78.498,78.474,1.01940079]
[1771887343242,1.05433989,78.497,78.474,1.01940079]
[1771887344661,12.73950264,78.496,78.474,1.01940079]
[1771887346264,1.05433989,78.496,78.474,1.01940079]
[1771887347358,12.73966494,78.495,78.474,1.01940079]
[1771887355669,0.95842534,78.494,78.474,1.01940079]
[1771887356471,12.73966494,78.495,78.474,1.01940079]
[1771887357765,0.95842534,78.527,78.474,1.01940079]
[1771887357966,0.95842534,78.519,78.474,1.01940079]
[1771887359272,0.95842534,78.517,78.474,1.01940079]
[1771887360158,0.95842534,78.517,78.476,0.94129051]
[1771887362676,0.95842534,78.515,78.476,0.94129051]
[1771887363375,0.95842534,78.515,78.478,0.94129051]
[1771887367865,0.95842534,78.513,78.478,0.94129051]
[1771887371286,0.95842534,78.511,78.478,0.94129051]
[1771887373379,0.95842534,78.509,78.478,0.94129051]
[1771887378273,0.8353715,78.507,78.48,0.80161549]
[1771887379679,0.8353715,78.505,78.48,0.80161549]
[1771887381388,31.84145502,78.514,78.48,0.80161549]
[1771887381389,13.52043438,78.504,78.48,0.80161549]
[1771887381591,0.78222996,78.524,78.484,0.79680883]
[1771887381970,0.78222996,78.524,78.49,5.49267398]
[1771887382186,0.78222996,78.524,78.483,0.28432314]
[1771887382187,0.78222996,78.524,78.491,0.79680883]
[1771887383387,0.78222996,78.522,78.491,0.79680883]
[1771887384575,0.78222996,78.52,78.491,0.79680883]
[1771887385395,6.27490394,78.52,78.491,0.79680883]
[1771887385598,0.78222996,78.519,78.491,0.79680883]
[1771887387101,12.73593316,78.518,78.491,0.79680883]
[1771887387304,0.78222996,78.517,78.491,0.79680883]
[1771887389899,0.78222996,78.515,78.491,0.79680883]
[1771887390309,12.73625757,78.516,78.491,0.79680883]
[1771887392889,0.78222996,78.522,78.491,0.79680883]
[1771887394006,12.73512219,78.523,78.495,0.79680883]
[1771887394205,13.51678427,78.527,78.495,0.79680883]
[1771887394401,0.78222996,78.526,78.495,0.79680883]
[1771887398915,12.73479783,78.525,78.501,0.79680883]
[1771887399220,0.2,78.53,78.511,0.79680883]
[1771887399916,63.65162544,78.553,78.495,12.7395131]
[1771887399917,0.78222996,78.548,78.521,0.79680883]
[1771887401005,0.78222996,78.546,78.514,0.79680883]
[1771887403017,12.73155515,78.545,78.514,0.79680883]
[1771887403223,0.78222996,78.544,78.514,0.79680883]
[1771887404922,0.78222996,78.544,78.503,31.84554384]
[1771887404923,0.7780098,78.539,78.505,0.79680883]
[1771887405119,0.7780098,78.529,78.5,0.79680883]
[1771887407525,0.76360781,78.527,78.5,0.79680883]
[1771887410614,0.74516539,78.525,78.5,0.79680883]
[1771887411433,0.74516539,78.525,78.501,0.7530252]
[1771887412536,12.73496001,78.524,78.501,0.7530252]
[1771887412736,0.73625888,78.523,78.501,0.7530252]
[1771887414633,0.7275558,78.519,78.469,0.7530252]
[1771887414929,0.7275558,78.519,78.481,0.7530252]
[1771887415824,0.72327908,78.509,78.481,0.7530252]
[1771887416733,0.71905149,78.507,78.481,0.7530252]
[1771887418331,0.71905149,78.507,78.476,0.7530252]
[1771887418830,0.71074143,78.505,78.468,0.7530252]
[1771887421121,5.48953363,78.51,78.46,18.23481044]
[1771887421122,0.70262116,78.503,78.471,0.7530252]
[1771887421932,0.70262116,78.503,78.466,0.7530252]
[1771887422130,0.69863085,78.499,78.466,0.7530252]
[1771887422332,0.69863085,78.499,78.431,12.75006056]
[1771887422333,0.69863085,78.489,78.456,0.7530252]
[1771887424229,0.69078719,78.487,78.456,0.7530252]
[1771887425729,0.68312268,78.485,78.456,0.7530252]
[1771887425935,0.68312268,78.485,78.451,0.7530252]
[1771887427839,0.67563323,78.483,78.451,0.7530252]
[1771887429837,44.59621314,78.482,78.451,0.7530252]
[1771887430036,0.66831484,78.481,78.451,0.7530252]
[1771887431737,5.48953363,78.48,78.451,0.7530252]
[1771887431927,0.6611636,78.479,78.451,0.7530252]
[1771887432128,0.6611636,78.477,78.451,0.7530252]
[1771887436847,44.5996228,78.476,78.451,0.7530252]
[1771887437031,0.64399195,78.475,78.451,0.7530252]
[1771887438636,0.70657911,78.469,78.424,12.75104976]
[1771887438836,0.70657911,78.469,78.43,5.48953363]
[1771887439441,0.70657911,78.467,78.44,5.48953363]
[1771887440150,0.70657911,78.467,78.43,5.48953363]
[1771887440528,5.48953363,78.46,78.431,0.68186142]
[1771887440743,0.70657911,78.459,78.431,0.68186142]
[1771887441544,44.60985495,78.458,78.431,0.68186142]
[1771887441749,0.66183867,78.457,78.431,0.68186142]
[1771887442937,0.66183867,78.455,78.431,0.68186142]
[1771887446336,12.74632268,78.454,78.431,0.68186142]
[1771887446647,0.66183867,78.469,78.441,0.67807749]
[1771887447046,0.66183867,78.469,78.451,0.67807749]
[1771887447547,31.85427631,78.483,78.451,0.67807749]
[1771887447749,0.66183867,78.482,78.451,0.67807749]
[1771887450250,0.66183867,78.48,78.451,0.67807749]
[1771887451544,0.66183867,78.494,78.461,0.67807749]
[1771887452151,0.66183867,78.494,78.471,0.67807749]
[1771887453672,0.66183867,78.492,78.471,0.67807749]
[1771887455547,12.74031417,78.491,78.471,0.67807749]
[1771887455759,0.66183867,78.491,78.471,0.67807749]
[1771887457163,13.40231516,78.49,78.471,0.67807749]
[1771887457557,0.66183867,78.489,78.471,0.67807749]
[1771887457754,0.66183867,78.489,78.45,5.48953363]
[1771887458353,0.66183867,78.489,78.451,5.64518502]
[1771887458748,0.66183867,78.489,78.45,5.48953363]
[1771887459662,44.59280399,78.488,78.451,0.67807749]
[1771887459863,0.66183867,78.487,78.451,0.67807749]
[1771887465057,0.66183867,78.485,78.451,0.67807749]
[1771887467560,0.66183867,78.483,78.461,0.67478201]
[1771887469775,0.64833189,78.498,78.461,0.67478201]
[1771887474565,44.58769124,78.497,78.461,0.67478201]
[1771887474864,0.64833189,78.496,78.461,0.67478201]
[1771887475376,0.64833189,78.496,78.434,18.3947579]
[1771887475684,0.64833189,78.496,78.46,5.49400638]
[1771887476278,0.66055922,78.489,78.45,5.49400638]
[1771887476473,0.66055922,78.489,78.422,12.7515238]
[1771887476679,0.66055922,78.477,78.433,0.14216157]
[1771887476867,0.66055922,78.477,78.433,0.28432314]
[1771887477575,0.66055922,78.477,78.44,5.49400638]
[1771887479093,0.66055922,78.475,78.44,5.49400638]
[1771887480888,0.66055922,78.473,78.44,5.49400638]
[1771887485399,12.74339891,78.472,78.44,5.49400638]
[1771887485592,0.66055922,78.471,78.44,5.49400638]
[1771887494194,0.66055922,78.469,78.44,5.49400638]
[1771887497807,12.74372371,78.47,78.44,5.49400638]
[1771887497808,0.66055922,78.467,78.44,5.49400638]
[1771887500116,0.66055922,78.465,78.45,5.49400638]
[1771887502219,0.66055922,78.463,78.45,5.49400638]
[1771887502627,12.7446982,78.464,78.45,5.49400638]
[1771887504323,0.66055922,78.488,78.451,18.39199513]
[1771887504618,0.66055922,78.488,78.47,5.49400638]
[1771887508413,12.74096347,78.487,78.47,5.49400638]
[1771887509315,0.66055922,78.49,78.48,5.49400638]
[1771887509514,0.66055922,78.49,78.47,5.49400638]
[1771887510630,0.66055922,78.498,78.48,5.49400638]
[1771887513031,0.66055922,78.496,78.48,5.49400638]
[1771887514735,12.73966494,78.495,78.48,5.49400638]
[1771887515115,13.40022416,78.495,78.48,5.49400638]
[1771887518641,0.66055922,78.494,78.48,5.49400638]
[1771887518838,12.73998955,78.493,78.48,5.49400638]
[1771887527940,0.66055922,78.493,78.48,5.49400638]
[1771887529027,12.74015186,78.492,78.48,5.49400638]
[1771887529228,0.66055922,78.491,78.453,5.64518502]
[1771887529536,0.66055922,78.491,78.47,5.49400638]
[1771887533255,0.66055922,78.489,78.46,5.49442047]
[1771887536853,0.66055922,78.487,78.46,5.49442047]
[1771887539448,5.49442047,78.52,78.45,5.49442047]
[1771887539449,0.66055922,78.485,78.45,5.49442047]
[1771887543858,0.66055922,78.479,78.44,5.49442047]
[1771887548159,0.66055922,78.477,78.44,5.49442047]
[1771887549838,0.66055922,78.475,78.44,5.49442047]
[1771887550159,0.66055922,78.469,78.43,5.49442047]
[1771887551651,0.66055922,78.467,78.43,5.49442047]
[1771887552751,0.66055922,78.467,78.401,163.8]
[1771887552752,5.49442047,78.44,78.4,0.1]
[1771887552971,0.66055922,78.429,78.4,0.1]
[1771887553150,14.78680424,78.466,78.37,5.59442047]
[1771887553151,0.66055922,78.409,78.37,5.59442047]
[1771887553358,0.66055922,78.399,78.37,0.1]
[1771887553555,0.66055922,78.397,78.37,0.1]
[1771887553864,0.66055922,78.397,78.37,5.59442047]
[1771887554049,0.66055922,78.397,78.37,0.1]
[1771887555045,0.66055922,78.397,78.37,5.59442047]
[1771887555251,50.99108354,78.446,78.37,5.59442047]
[1771887555252,0.66055922,78.436,78.38,5.49442047]
[1771887555453,0.66055922,78.436,78.41,5.49442047]
[1771887555767,0.66055922,78.434,78.41,5.49442047]
[1771887557676,0.66055922,78.432,78.41,5.49442047]
[1771887558951,0.66055922,78.432,78.4,5.49442047]
[1771887559761,0.66055922,78.43,78.4,5.49442047]
[1771887560553,0.66055922,78.43,78.393,0.28432314]
[1771887560759,0.66055922,78.43,78.4,5.49442047]
[1771887560958,0.66055922,78.429,78.39,5.49442047]
[1771887561358,0.66055922,78.419,78.38,5.49442047]
[1771887562789,0.66055922,78.417,78.38,5.49442047]
[1771887565593,0.66055922,78.415,78.38,5.49442047]
[1771887566091,12.75249948,78.416,78.4,5.49442047]
[1771887567075,0.66055922,78.429,78.4,5.49442047]
[1771887568476,0.66055922,78.427,78.4,5.49442047]
[1771887569191,0.66055922,78.427,78.39,5.49442047]
[1771887570585,0.66055922,78.425,78.39,5.49442047]
[1771887571614,0.66055922,78.423,78.39,5.49442047]
[1771887573396,0.66055922,78.423,78.381,13.04240517]
[1771887573607,0.66055922,78.419,78.381,13.04240517]
[1771887573812,0.66055922,78.399,78.342,5.36086188]
[1771887574102,99.33514085,78.418,78.36,0.1]
[1771887574103,0.61055922,78.389,78.36,0.1]
[1771887574717,0.61055922,78.379,78.36,0.1]
[1771887575497,0.61055922,78.379,78.34,5.49442047]
[1771887575806,5.49442047,78.38,78.34,5.49442047]
[1771887575807,0.61055922,78.377,78.34,5.49442047]
[1771887578222,0.61055922,78.375,78.333,0.28432314]
[1771887578806,0.61055922,78.369,78.333,0.28432314]
[1771887580395,0.61055922,78.367,78.331,0.28432314]
[1771887581123,0.61055922,78.367,78.34,5.49442047]
[1771887581426,31.89751964,78.376,78.346,0.50998471]
[1771887581924,5.49442047,78.38,78.34,6.00374868]
[1771887582301,5.49442047,78.38,78.349,0.50932821]
[1771887582500,31.89792663,78.375,78.349,0.50932821]
[1771887582696,31.89792663,78.375,78.35,0.60867924]
[1771887583220,31.89792663,78.375,78.35,0.1]
[1771887583414,0.54364276,78.374,78.35,0.1]
[1771887584803,44.65823688,78.373,78.35,0.1]
[1771887585008,0.54364276,78.372,78.35,0.1]
[1771887585210,44.65823688,78.373,78.35,0.1]
[1771887585407,0.54364276,78.372,78.35,0.1]
[1771887587206,0.54364276,78.37,78.35,0.1]
[1771887587720,0.54364276,78.369,78.35,0.1]
[1771887588904,0.5375218,78.367,78.33,5.49442047]
[1771887589224,0.5375218,78.367,78.325,0.51679751]
[1771887592729,2.35958077,78.36,78.326,0.51679751]
[1771887592927,44.66222596,78.366,78.326,0.51679751]
[1771887593517,44.66222596,78.366,78.331,0.51679751]
[1771887594815,0.5375218,78.363,78.331,0.51679751]
[1771887595509,0.5375218,78.359,78.331,0.51679751]
[1771887596925,0.5375218,78.357,78.331,0.51679751]
[1771887599026,12.76226453,78.356,78.331,0.51679751]
[1771887599230,0.5375218,78.355,78.331,0.51679751]
[1771887600231,12.76259029,78.354,78.331,0.51679751]
[1771887600433,0.54569366,78.384,78.341,0.03010523]
[1771887600613,0.54569366,78.384,78.351,0.03159522]
[1771887600932,5.51354967,78.44,78.371,0.03159522]
[1771887600933,0.54569366,78.406,78.371,0.03159522]
[1771887601233,0.54569366,78.402,78.371,0.03159522]
[1771887601424,0.54569366,78.4,78.371,0.03159522]
[1771887601620,0.54569366,78.409,78.381,0.0330681]
[1771887601933,50.98213182,78.459,78.377,0.0330681]
[1771887601934,0.54569366,78.419,78.377,0.0330681]
[1771887602118,0.54569366,78.409,78.371,0.0330681]
[1771887602313,0.54569366,78.399,78.365,0.0330681]
[1771887605533,0.54569366,78.389,78.357,0.04365183]
[1771887606225,0.54569366,78.389,78.351,0.04365183]
[1771887607236,0.54569366,78.387,78.351,0.04365183]
[1771887608142,0.54569366,78.387,78.342,0.05596843]
[1771887610534,0.54569366,78.385,78.342,0.05596843]
[1771887611236,0.54569366,78.385,78.351,0.2]
[1771887611427,0.54569366,78.379,78.351,0.2]
[1771887612236,0.54569366,78.379,78.352,0.07976413]
[1771887613042,0.54569366,78.377,78.352,0.07976413]
[1771887615146,12.75900785,78.376,78.352,0.07976413]
[1771887615533,0.54569366,78.375,78.352,0.07976413]
[1771887617041,0.54569366,78.373,78.351,0.2]
[1771887617650,0.54569366,78.373,78.34,5.51354967]
[1771887618453,0.54569366,78.373,78.352,0.2]
[1771887619249,12.75965906,78.372,78.352,0.2]
[1771887619450,0.59969534,78.371,78.352,0.2]
[1771887620150,0.39969534,78.371,78.352,0.2]
[1771887621553,12.75998468,78.37,78.352,0.2]
[1771887622152,12.75998468,78.37,78.352,0.43689232]
[1771887622450,12.75998468,78.37,78.353,0.23689232]
[1771887623035,13.35996329,78.37,78.353,0.23689232]
[1771887623557,0.59997861,78.369,78.353,0.23689232]
[1771887624844,12.7585195,78.379,78.353,0.23689232]
[1771887625454,0.59997861,78.378,78.353,0.23689232]
[1771887625653,0.2,78.37,78.353,0.23689232]
[1771887626534,0.2,78.36,78.353,0.23689232]
[1771887627358,0.2,78.36,78.353,0.03689232]
[1771887627843,5.51354967,78.4,78.355,0.55618369]
[1771887628455,5.51354967,78.39,78.355,0.55618369]
[1771887628761,5.51354967,78.4,78.355,0.55618369]
[1771887628962,5.51354967,78.39,78.355,0.55618369]
[1771887630034,12.75689191,78.389,78.355,0.55618369]
[1771887630237,0.59997861,78.388,78.355,0.55618369]
[1771887631543,0.59997861,78.386,78.355,0.55618369]
[1771887632555,0.59997861,78.386,78.357,0.55618369]
[1771887633954,0.59997861,78.384,78.365,0.2]
[1771887635156,0.59997861,78.384,78.375,0.2]
[1771887635361,0.59997861,78.384,78.365,0.2]
[1771887635865,0.59997861,78.384,78.366,0.55618369]
[1771887636039,0.59997861,78.388,78.366,0.55618369]
[1771887637864,31.8891489,78.397,78.365,0.2]
[1771887637865,0.59997861,78.402,78.371,0.55618369]
[1771887638162,0.59997861,78.407,78.373,0.55618369]
[1771887639148,0.59997861,78.405,78.375,0.55618369]
[1771887642169,0.59997861,78.403,78.381,0.55618369]
[1771887644173,0.59997861,78.401,78.381,0.55618369]
[1771887645967,0.59997861,78.399,78.36,5.51354967]
[1771887647472,12.75542743,78.398,78.36,5.51354967]
[1771887647662,0.59997861,78.397,78.36,5.51354967]
[1771887647862,0.59997861,78.397,78.361,0.22280724]
[1771887652181,0.66034466,78.395,78.361,0.22280724]
[1771887653568,0.66034466,78.393,78.361,0.22280724]
[1771887656173,51.00940724,78.417,78.333,0.2616871]
[1771887656174,5.51354967,78.39,78.333,0.2616871]
[1771887656477,0.66034466,78.389,78.351,0.2616871]
[1771887658567,0.66034466,78.387,78.351,0.2616871]
[1771887658878,12.75705465,78.388,78.361,0.27565929]
[1771887659263,13.41739931,78.388,78.361,0.27565929]
[1771887659459,0.66034466,78.387,78.37,5.51049031]
[1771887660169,0.66034466,78.387,78.37,5.79070042]
[1771887661470,12.75738014,78.386,78.37,0.28021011]
[1771887661672,12.75738014,78.386,78.37,5.79070042]
[1771887662386,12.75738014,78.386,78.371,0.28915553]
[1771887662584,13.4177248,78.386,78.371,0.28915553]
[1771887662883,13.4177248,78.386,78.37,5.51049031]
[1771887662884,0.66034466,78.385,78.366,0.29355133]
[1771887663074,0.66034466,78.385,78.37,5.51049031]
[1771887663905,12.75770565,78.384,78.37,5.51049031]
[1771887664473,12.75770565,78.384,78.37,5.81268235]
[1771887664674,0.66034466,78.383,78.37,5.51049031]
[1771887664888,0.66034466,78.387,78.37,5.81268235]
[1771887665981,0.66034466,78.387,78.37,0.30219204]
[1771887668276,0.66034466,78.385,78.37,0.30219204]
[1771887669078,0.66034466,78.385,78.362,0.3188859]
[1771887670598,0.66034466,78.384,78.364,0.32694797]
[1771887670777,12.75706491,78.388,78.371,0.32694797]
[1771887671089,13.41740957,78.388,78.371,0.32694797]
[1771887671294,0.66034466,78.387,78.371,0.32694797]
[1771887672095,13.4177248,78.386,78.371,0.32694797]
[1771887672688,12.75510204,78.4,78.381,0.3348259]
[1771887672987,50.98362266,78.457,78.391,0.3348259]
[1771887672988,0.66034466,78.408,78.391,0.3348259]
[1771887674201,0.66034466,78.412,78.391,0.3348259]
[1771887674701,0.66034466,78.417,78.391,0.3348259]
[1771887675195,12.75119861,78.424,78.401,0.3425239]
[1771887675499,0.66034466,78.43,78.411,0.34630671]
[1771887675688,0.66034466,78.439,78.421,0.34630671]
[1771887675995,0.66034466,78.451,78.421,0.34630671]
[1771887676497,0.66034466,78.449,78.421,0.34630671]
[1771887676702,0.66034466,78.459,78.431,0.35004607]
[1771887678199,0.66034466,78.459,78.44,5.51049031]
[1771887678585,0.66034466,78.459,78.441,0.36100842]
[1771887678797,0.2,78.46,78.442,0.36100842]
[1771887679002,0.70162562,78.459,78.432,0.36100842]
[1771887679605,0.70162562,78.459,78.44,5.51049031]
[1771887679810,0.70162562,78.459,78.434,0.36457892]
[1771887680714,0.70162562,78.459,78.44,5.51049031]
[1771887681008,13.43498801,78.458,78.439,0.37159736]
[1771887681308,0.68931517,78.457,78.439,0.37159736]
[1771887681817,0.68931517,78.457,78.434,0.37504624]
[1771887684607,0.56080841,78.457,78.434,0.37504624]
[1771887684912,12.74599775,78.456,78.434,0.37504624]
[1771887685496,12.74599775,78.456,78.44,5.51049031]
[1771887685700,12.74599775,78.456,78.438,0.51695688]
[1771887686598,0.68931517,78.455,78.438,0.51695688]
[1771887687115,0.68931517,78.455,78.433,0.52021219]
[1771887687610,0.68931517,78.453,78.43,5.51049031]
[1771887687816,0.68931517,78.453,78.431,0.5234301]
[1771887688199,12.74632268,78.454,78.431,0.5234301]